Workbook

Sheet Sheet1
C5: 5 - 1715 | G5: Form 1099-B Proceeds From Broker and Barter Exchange Transactions
M6: Proceeds | N6: Cost/Basis | O6: Description
F7: 0 | L7: 1 | M7: =INDEX(_xlfn._xlws.FILTER($H$5:$H$3693,$G$5:$G$3693="Proceeds:"),L7) -> 104 | N7: =INDEX(_xlfn._xlws.FILTER($H$5:$H$3693,$G$5:$G$3693="Cost or Basis:"),L7) -> 84 | O7: =INDEX(_xlfn._xlws.FILTER($H$5:$H$3693,$G$5:$G$3693="Description:"),L7) -> CASTOR MARITIME INC COMMON SH ARES
F8: =IF(OR(G8="Proceeds:",G8="Interest:"),1+F7,F7) -> 0 | G8: Payer: | L8: 2 | M8: =INDEX(_xlfn._xlws.FILTER($H$5:$H$3693,$G$5:$G$3693="Proceeds:"),L8) -> 50 | N8: =INDEX(_xlfn._xlws.FILTER($H$5:$H$3693,$G$5:$G$3693="Cost or Basis:"),L8) -> 49 | O8: =INDEX(_xlfn._xlws.FILTER($H$5:$H$3693,$G$5:$G$3693="Description:"),L8) -> INTEL CORPORATION COMMON STOCK
F9: =IF(OR(G9="Proceeds:",G9="Interest:"),1+F8,F8) -> 0 | G9: Payer's Federal Identification Number (FIN):384019216 | L9: 3 | M9: =INDEX(_xlfn._xlws.FILTER($H$5:$H$3693,$G$5:$G$3693="Proceeds:"),L9) -> 573 | N9: =INDEX(_xlfn._xlws.FILTER($H$5:$H$3693,$G$5:$G$3693="Cost or Basis:"),L9) -> 609 | O9: =INDEX(_xlfn._xlws.FILTER($H$5:$H$3693,$G$5:$G$3693="Description:"),L9) -> AMC ENTERTAINMENT HOLDINGS IN C
F10: 0 | G10: ROBINHOOD SECURITIES LLC | L10: 4 | M10: =INDEX(_xlfn._xlws.FILTER($H$5:$H$3693,$G$5:$G$3693="Proceeds:"),L10) -> 81 | N10: =INDEX(_xlfn._xlws.FILTER($H$5:$H$3693,$G$5:$G$3693="Cost or Basis:"),L10) -> 110 | O10: =INDEX(_xlfn._xlws.FILTER($H$5:$H$3693,$G$5:$G$3693="Description:"),L10) -> SENS 02 19 2021 CALL 4 00
F11: 0 | G11: 500 COLONIAL CENTER PARKWAY SUITE 100 | L11: 5 | M11: =INDEX(_xlfn._xlws.FILTER($H$5:$H$3693,$G$5:$G$3693="Proceeds:"),L11) -> 616 | N11: =INDEX(_xlfn._xlws.FILTER($H$5:$H$3693,$G$5:$G$3693="Cost or Basis:"),L11) -> 443 | O11: =INDEX(_xlfn._xlws.FILTER($H$5:$H$3693,$G$5:$G$3693="Description:"),L11) -> TESLA INC COMMON STOCK
F12: 0 | G12: LAKE MARY, FL 32746-0000 | L12: 6 | M12: =INDEX(_xlfn._xlws.FILTER($H$5:$H$3693,$G$5:$G$3693="Proceeds:"),L12) -> 58 | N12: =INDEX(_xlfn._xlws.FILTER($H$5:$H$3693,$G$5:$G$3693="Cost or Basis:"),L12) -> 100 | O12: =INDEX(_xlfn._xlws.FILTER($H$5:$H$3693,$G$5:$G$3693="Description:"),L12) -> SENSEONICS HOLDINGS INC
F13: 0 | L13: 7 | M13: =INDEX(_xlfn._xlws.FILTER($H$5:$H$3693,$G$5:$G$3693="Proceeds:"),L13) -> 64 | N13: =INDEX(_xlfn._xlws.FILTER($H$5:$H$3693,$G$5:$G$3693="Cost or Basis:"),L13) -> 68 | O13: =INDEX(_xlfn._xlws.FILTER($H$5:$H$3693,$G$5:$G$3693="Description:"),L13) -> AMC ENTERTAINMENT HOLDINGS IN C
F14: 0 | G14: Recipient: | L14: 8 | M14: =INDEX(_xlfn._xlws.FILTER($H$5:$H$3693,$G$5:$G$3693="Proceeds:"),L14) -> 645 | N14: =INDEX(_xlfn._xlws.FILTER($H$5:$H$3693,$G$5:$G$3693="Cost or Basis:"),L14) -> 626 | O14: =INDEX(_xlfn._xlws.FILTER($H$5:$H$3693,$G$5:$G$3693="Description:"),L14) -> VIRGIN GALACTIC HOLDINGS INC
F15: 0 | G15: Recipient's Identification Number: 646-04-1329 | L15: 9 | M15: =INDEX(_xlfn._xlws.FILTER($H$5:$H$3693,$G$5:$G$3693="Proceeds:"),L15) -> 628 | N15: =INDEX(_xlfn._xlws.FILTER($H$5:$H$3693,$G$5:$G$3693="Cost or Basis:"),L15) -> 685 | O15: =INDEX(_xlfn._xlws.FILTER($H$5:$H$3693,$G$5:$G$3693="Description:"),L15) -> VIRGIN GALACTIC HOLDINGS INC
F16: 0 | G16: NATHAN TUN | L16: 10 | M16: =INDEX(_xlfn._xlws.FILTER($H$5:$H$3693,$G$5:$G$3693="Proceeds:"),L16) -> 634 | N16: =INDEX(_xlfn._xlws.FILTER($H$5:$H$3693,$G$5:$G$3693="Cost or Basis:"),L16) -> 647 | O16: =INDEX(_xlfn._xlws.FILTER($H$5:$H$3693,$G$5:$G$3693="Description:"),L16) -> ALIBABA GROUP HOLDING LIMITED AMERICAN
F17: 0 | G17: 1416 MICHIGAN ST C2 | L17: 11 | M17: =INDEX(_xlfn._xlws.FILTER($H$5:$H$3693,$G$5:$G$3693="Proceeds:"),L17) -> 110 | N17: =INDEX(_xlfn._xlws.FILTER($H$5:$H$3693,$G$5:$G$3693="Cost or Basis:"),L17) -> 96 | O17: =INDEX(_xlfn._xlws.FILTER($H$5:$H$3693,$G$5:$G$3693="Description:"),L17) -> SENSEONICS HOLDINGS INC
F18: 0 | G18: STORM LAKE, IA 50588-0000 | L18: 12 | M18: =INDEX(_xlfn._xlws.FILTER($H$5:$H$3693,$G$5:$G$3693="Proceeds:"),L18) -> 102 | N18: =INDEX(_xlfn._xlws.FILTER($H$5:$H$3693,$G$5:$G$3693="Cost or Basis:"),L18) -> 76 | O18: =INDEX(_xlfn._xlws.FILTER($H$5:$H$3693,$G$5:$G$3693="Description:"),L18) -> SENSEONICS HOLDINGS INC
F19: 0 | L19: 13 | M19: =INDEX(_xlfn._xlws.FILTER($H$5:$H$3693,$G$5:$G$3693="Proceeds:"),L19) -> 526 | N19: =INDEX(_xlfn._xlws.FILTER($H$5:$H$3693,$G$5:$G$3693="Cost or Basis:"),L19) -> 531 | O19: =INDEX(_xlfn._xlws.FILTER($H$5:$H$3693,$G$5:$G$3693="Description:"),L19) -> AMC ENTERTAINMENT HOLDINGS IN C
F20: 0 | L20: 14 | M20: =INDEX(_xlfn._xlws.FILTER($H$5:$H$3693,$G$5:$G$3693="Proceeds:"),L20) -> 453 | N20: =INDEX(_xlfn._xlws.FILTER($H$5:$H$3693,$G$5:$G$3693="Cost or Basis:"),L20) -> 623 | O20: =INDEX(_xlfn._xlws.FILTER($H$5:$H$3693,$G$5:$G$3693="Description:"),L20) -> FUELCELL ENERGY INC COMMON S TOCK
F21: 0 | G21: Submission Type: | H21: Original document | L21: 15 | M21: =INDEX(_xlfn._xlws.FILTER($H$5:$H$3693,$G$5:$G$3693="Proceeds:"),L21) -> 111 | N21: =INDEX(_xlfn._xlws.FILTER($H$5:$H$3693,$G$5:$G$3693="Cost or Basis:"),L21) -> 108 | O21: =INDEX(_xlfn._xlws.FILTER($H$5:$H$3693,$G$5:$G$3693="Description:"),L21) -> ORGANIGRAM HOLDINGS INC COMMO N SHARES
F22: 0 | G22: Account Number (Optional): | H22: WSC15416451 | L22: 16 | M22: =INDEX(_xlfn._xlws.FILTER($H$5:$H$3693,$G$5:$G$3693="Proceeds:"),L22) -> 15 | N22: =INDEX(_xlfn._xlws.FILTER($H$5:$H$3693,$G$5:$G$3693="Cost or Basis:"),L22) -> 40 | O22: =INDEX(_xlfn._xlws.FILTER($H$5:$H$3693,$G$5:$G$3693="Description:"),L22) -> CASTOR MARITIME INC COMMON SH ARES
F23: 0 | G23: Date Sold or Disposed: | H23: 2021-02-08 | L23: 17 | M23: =INDEX(_xlfn._xlws.FILTER($H$5:$H$3693,$G$5:$G$3693="Proceeds:"),L23) -> 618 | N23: =INDEX(_xlfn._xlws.FILTER($H$5:$H$3693,$G$5:$G$3693="Cost or Basis:"),L23) -> 630 | O23: =INDEX(_xlfn._xlws.FILTER($H$5:$H$3693,$G$5:$G$3693="Description:"),L23) -> AMC ENTERTAINMENT HOLDINGS IN C
F24: 0 | G24: CUSIP Number: | H24: Y1146L109 | L24: 18 | M24: =INDEX(_xlfn._xlws.FILTER($H$5:$H$3693,$G$5:$G$3693="Proceeds:"),L24) -> 669 | N24: =INDEX(_xlfn._xlws.FILTER($H$5:$H$3693,$G$5:$G$3693="Cost or Basis:"),L24) -> 574 | O24: =INDEX(_xlfn._xlws.FILTER($H$5:$H$3693,$G$5:$G$3693="Description:"),L24) -> AMC ENTERTAINMENT HOLDINGS IN C
F25: 0 | G25: Gross Proceeds: | H25: Nothing checked | L25: 19 | M25: =INDEX(_xlfn._xlws.FILTER($H$5:$H$3693,$G$5:$G$3693="Proceeds:"),L25) -> 35 | N25: =INDEX(_xlfn._xlws.FILTER($H$5:$H$3693,$G$5:$G$3693="Cost or Basis:"),L25) -> 81 | O25: =INDEX(_xlfn._xlws.FILTER($H$5:$H$3693,$G$5:$G$3693="Description:"),L25) -> SUNDIAL GROWERS INC COMMON SH ARES
F26: 0 | G26: Bartering: | H26: 0 | L26: 20 | M26: =INDEX(_xlfn._xlws.FILTER($H$5:$H$3693,$G$5:$G$3693="Proceeds:"),L26) -> 51 | N26: =INDEX(_xlfn._xlws.FILTER($H$5:$H$3693,$G$5:$G$3693="Cost or Basis:"),L26) -> 127 | O26: =INDEX(_xlfn._xlws.FILTER($H$5:$H$3693,$G$5:$G$3693="Description:"),L26) -> SUNDIAL GROWERS INC COMMON SH ARES
F27: 0 | G27: Federal Income Tax Withheld: | H27: 0 | L27: 21 | M27: =INDEX(_xlfn._xlws.FILTER($H$5:$H$3693,$G$5:$G$3693="Proceeds:"),L27) -> 68 | N27: =INDEX(_xlfn._xlws.FILTER($H$5:$H$3693,$G$5:$G$3693="Cost or Basis:"),L27) -> 63 | O27: =INDEX(_xlfn._xlws.FILTER($H$5:$H$3693,$G$5:$G$3693="Description:"),L27) -> AGENUS INC COMMON STOCK
F28: 1 | G28: Proceeds: | H28: 104 | L28: 22 | M28: =INDEX(_xlfn._xlws.FILTER($H$5:$H$3693,$G$5:$G$3693="Proceeds:"),L28) -> 92 | N28: =INDEX(_xlfn._xlws.FILTER($H$5:$H$3693,$G$5:$G$3693="Cost or Basis:"),L28) -> 90 | O28: =INDEX(_xlfn._xlws.FILTER($H$5:$H$3693,$G$5:$G$3693="Description:"),L28) -> GENERAL ELECTRIC COMPANY
F29: 1 | G29: Aggregate Profit or (Loss): | H29: 0 | L29: 23 | M29: =INDEX(_xlfn._xlws.FILTER($H$5:$H$3693,$G$5:$G$3693="Proceeds:"),L29) -> 49 | N29: =INDEX(_xlfn._xlws.FILTER($H$5:$H$3693,$G$5:$G$3693="Cost or Basis:"),L29) -> 50 | O29: =INDEX(_xlfn._xlws.FILTER($H$5:$H$3693,$G$5:$G$3693="Description:"),L29) -> TESLA INC COMMON STOCK
F30: 1 | G30: Realized Profit or (Loss): | H30: 0 | L30: 24 | M30: =INDEX(_xlfn._xlws.FILTER($H$5:$H$3693,$G$5:$G$3693="Proceeds:"),L30) -> 205 | N30: =INDEX(_xlfn._xlws.FILTER($H$5:$H$3693,$G$5:$G$3693="Cost or Basis:"),L30) -> 206 | O30: =INDEX(_xlfn._xlws.FILTER($H$5:$H$3693,$G$5:$G$3693="Description:"),L30) -> SENSEONICS HOLDINGS INC
F31: 1 | G31: Unrealized Profit or (Loss) 12/31 Prior Year: | H31: 0 | L31: 25 | M31: =INDEX(_xlfn._xlws.FILTER($H$5:$H$3693,$G$5:$G$3693="Proceeds:"),L31) -> 683 | N31: =INDEX(_xlfn._xlws.FILTER($H$5:$H$3693,$G$5:$G$3693="Cost or Basis:"),L31) -> 670 | O31: =INDEX(_xlfn._xlws.FILTER($H$5:$H$3693,$G$5:$G$3693="Description:"),L31) -> FUELCELL ENERGY INC COMMON S TOCK
F32: 1 | G32: Unrealized Profit or (Loss) 12/31 Current Year: | H32: 0 | L32: 26 | M32: =INDEX(_xlfn._xlws.FILTER($H$5:$H$3693,$G$5:$G$3693="Proceeds:"),L32) -> 44 | N32: =INDEX(_xlfn._xlws.FILTER($H$5:$H$3693,$G$5:$G$3693="Cost or Basis:"),L32) -> 0 | O32: =INDEX(_xlfn._xlws.FILTER($H$5:$H$3693,$G$5:$G$3693="Description:"),L32) -> 0.04071868 BITCOIN CASH TO US DOLLAR
F33: 1 | G33: Cost or Basis: | H33: 84 | L33: 27 | M33: =INDEX(_xlfn._xlws.FILTER($H$5:$H$3693,$G$5:$G$3693="Proceeds:"),L33) -> 42 | N33: =INDEX(_xlfn._xlws.FILTER($H$5:$H$3693,$G$5:$G$3693="Cost or Basis:"),L33) -> 0 | O33: =INDEX(_xlfn._xlws.FILTER($H$5:$H$3693,$G$5:$G$3693="Description:"),L33) -> 590 DOGECOIN TO US DOLLAR
F34: 1 | G34: Wash Sale Loss Disallowed: | H34: 0 | L34: 28 | M34: =INDEX(_xlfn._xlws.FILTER($H$5:$H$3693,$G$5:$G$3693="Proceeds:"),L34) -> 20 | N34: =INDEX(_xlfn._xlws.FILTER($H$5:$H$3693,$G$5:$G$3693="Cost or Basis:"),L34) -> 0 | O34: =INDEX(_xlfn._xlws.FILTER($H$5:$H$3693,$G$5:$G$3693="Description:"),L34) -> 239 DOGECOIN TO US DOLLAR
F35: 1 | G35: Accrued Market Discount Amount: | H35: 0 | L35: 29 | M35: =INDEX(_xlfn._xlws.FILTER($H$5:$H$3693,$G$5:$G$3693="Proceeds:"),L35) -> 58 | N35: =INDEX(_xlfn._xlws.FILTER($H$5:$H$3693,$G$5:$G$3693="Cost or Basis:"),L35) -> 0 | O35: =INDEX(_xlfn._xlws.FILTER($H$5:$H$3693,$G$5:$G$3693="Description:"),L35) -> 726 DOGECOIN TO US DOLLAR
F36: 1 | G36: Description: | H36: CASTOR MARITIME INC COMMON SH ARES | L36: 30 | M36: =INDEX(_xlfn._xlws.FILTER($H$5:$H$3693,$G$5:$G$3693="Proceeds:"),L36) -> 113 | N36: =INDEX(_xlfn._xlws.FILTER($H$5:$H$3693,$G$5:$G$3693="Cost or Basis:"),L36) -> 0 | O36: =INDEX(_xlfn._xlws.FILTER($H$5:$H$3693,$G$5:$G$3693="Description:"),L36) -> 1247 DOGECOIN TO US DOLLAR
F37: 1 | G37: Second Notice Indicator: | H37: No Second Notice | L37: 31 | M37: =INDEX(_xlfn._xlws.FILTER($H$5:$H$3693,$G$5:$G$3693="Proceeds:"),L37) -> 97 | N37: =INDEX(_xlfn._xlws.FILTER($H$5:$H$3693,$G$5:$G$3693="Cost or Basis:"),L37) -> 0 | O37: =INDEX(_xlfn._xlws.FILTER($H$5:$H$3693,$G$5:$G$3693="Description:"),L37) -> 736 DOGECOIN TO US DOLLAR
F38: 1 | G38: Date Acquired: | H38: 2021-02-04 | L38: 32 | M38: =INDEX(_xlfn._xlws.FILTER($H$5:$H$3693,$G$5:$G$3693="Proceeds:"),L38) -> 253 | N38: =INDEX(_xlfn._xlws.FILTER($H$5:$H$3693,$G$5:$G$3693="Cost or Basis:"),L38) -> 0 | O38: =INDEX(_xlfn._xlws.FILTER($H$5:$H$3693,$G$5:$G$3693="Description:"),L38) -> 768 DOGECOIN TO US DOLLAR
F39: 1 | G39: Noncovered Security Indicator: | H39: Nothing checked | L39: 33 | M39: =INDEX(_xlfn._xlws.FILTER($H$5:$H$3693,$G$5:$G$3693="Proceeds:"),L39) -> 292 | N39: =INDEX(_xlfn._xlws.FILTER($H$5:$H$3693,$G$5:$G$3693="Cost or Basis:"),L39) -> 0 | O39: =INDEX(_xlfn._xlws.FILTER($H$5:$H$3693,$G$5:$G$3693="Description:"),L39) -> 746 DOGECOIN TO US DOLLAR
F40: 1 | G40: Type of Gain or Loss Code: | H40: Short-term | L40: 34 | M40: =INDEX(_xlfn._xlws.FILTER($H$5:$H$3693,$G$5:$G$3693="Proceeds:"),L40) -> 5 | N40: =INDEX(_xlfn._xlws.FILTER($H$5:$H$3693,$G$5:$G$3693="Cost or Basis:"),L40) -> 0 | O40: =INDEX(_xlfn._xlws.FILTER($H$5:$H$3693,$G$5:$G$3693="Description:"),L40) -> 16 DOGECOIN TO US DOLLAR
F41: 1 | G41: Applicable Check Box on Form 8949: | H41: Short term transaction for which the cost or other basis is being reported to the IRS | L41: 35 | M41: =INDEX(_xlfn._xlws.FILTER($H$5:$H$3693,$G$5:$G$3693="Proceeds:"),L41) -> 279 | N41: =INDEX(_xlfn._xlws.FILTER($H$5:$H$3693,$G$5:$G$3693="Cost or Basis:"),L41) -> 0 | O41: =INDEX(_xlfn._xlws.FILTER($H$5:$H$3693,$G$5:$G$3693="Description:"),L41) -> 776 DOGECOIN TO US DOLLAR
F42: 1 | G42: Loss Not Allowed Indicator: | L42: 36 | M42: =INDEX(_xlfn._xlws.FILTER($H$5:$H$3693,$G$5:$G$3693="Proceeds:"),L42) -> 135 | N42: =INDEX(_xlfn._xlws.FILTER($H$5:$H$3693,$G$5:$G$3693="Cost or Basis:"),L42) -> 0 | O42: =INDEX(_xlfn._xlws.FILTER($H$5:$H$3693,$G$5:$G$3693="Description:"),L42) -> 259 DOGECOIN TO US DOLLAR
F43: 1 | G43: FATCA Filing Requirement: | H43: Box not checked no Filing Requirement | L43: 37 | M43: =INDEX(_xlfn._xlws.FILTER($H$5:$H$3693,$G$5:$G$3693="Proceeds:"),L43) -> 440 | N43: =INDEX(_xlfn._xlws.FILTER($H$5:$H$3693,$G$5:$G$3693="Cost or Basis:"),L43) -> 0 | O43: =INDEX(_xlfn._xlws.FILTER($H$5:$H$3693,$G$5:$G$3693="Description:"),L43) -> 720 DOGECOIN TO US DOLLAR
F44: 1 | G44: Proceeds from: | H44: Box not checked | L44: 38 | M44: =INDEX(_xlfn._xlws.FILTER($H$5:$H$3693,$G$5:$G$3693="Proceeds:"),L44) -> 225 | N44: =INDEX(_xlfn._xlws.FILTER($H$5:$H$3693,$G$5:$G$3693="Cost or Basis:"),L44) -> 0 | O44: =INDEX(_xlfn._xlws.FILTER($H$5:$H$3693,$G$5:$G$3693="Description:"),L44) -> 342 DOGECOIN TO US DOLLAR
F45: 1 | L45: 39 | M45: =INDEX(_xlfn._xlws.FILTER($H$5:$H$3693,$G$5:$G$3693="Proceeds:"),L45) -> 221 | N45: =INDEX(_xlfn._xlws.FILTER($H$5:$H$3693,$G$5:$G$3693="Cost or Basis:"),L45) -> 0 | O45: =INDEX(_xlfn._xlws.FILTER($H$5:$H$3693,$G$5:$G$3693="Description:"),L45) -> 336 DOGECOIN TO US DOLLAR
F46: 1 | G46: Form 1099-B Proceeds From Broker and Barter Exchange Transactions | L46: 40 | M46: =INDEX(_xlfn._xlws.FILTER($H$5:$H$3693,$G$5:$G$3693="Proceeds:"),L46) -> 163 | N46: =INDEX(_xlfn._xlws.FILTER($H$5:$H$3693,$G$5:$G$3693="Cost or Basis:"),L46) -> 0 | O46: =INDEX(_xlfn._xlws.FILTER($H$5:$H$3693,$G$5:$G$3693="Description:"),L46) -> 241 DOGECOIN TO US DOLLAR
F47: 1 | L47: 41 | M47: =INDEX(_xlfn._xlws.FILTER($H$5:$H$3693,$G$5:$G$3693="Proceeds:"),L47) -> 293 | N47: =INDEX(_xlfn._xlws.FILTER($H$5:$H$3693,$G$5:$G$3693="Cost or Basis:"),L47) -> 0 | O47: =INDEX(_xlfn._xlws.FILTER($H$5:$H$3693,$G$5:$G$3693="Description:"),L47) -> 433 DOGECOIN TO US DOLLAR
F48: 1 | L48: 42 | M48: =INDEX(_xlfn._xlws.FILTER($H$5:$H$3693,$G$5:$G$3693="Proceeds:"),L48) -> 367 | N48: =INDEX(_xlfn._xlws.FILTER($H$5:$H$3693,$G$5:$G$3693="Cost or Basis:"),L48) -> 0 | O48: =INDEX(_xlfn._xlws.FILTER($H$5:$H$3693,$G$5:$G$3693="Description:"),L48) -> 624 DOGECOIN TO US DOLLAR
F49: 1 | G49: Payer: | L49: 43 | M49: =INDEX(_xlfn._xlws.FILTER($H$5:$H$3693,$G$5:$G$3693="Proceeds:"),L49) -> 384 | N49: =INDEX(_xlfn._xlws.FILTER($H$5:$H$3693,$G$5:$G$3693="Cost or Basis:"),L49) -> 0 | O49: =INDEX(_xlfn._xlws.FILTER($H$5:$H$3693,$G$5:$G$3693="Description:"),L49) -> 802 DOGECOIN TO US DOLLAR
F50: 1 | G50: Payer's Federal Identification Number (FIN):384019216 | L50: 44 | M50: =INDEX(_xlfn._xlws.FILTER($H$5:$H$3693,$G$5:$G$3693="Proceeds:"),L50) -> 141 | N50: =INDEX(_xlfn._xlws.FILTER($H$5:$H$3693,$G$5:$G$3693="Cost or Basis:"),L50) -> 0 | O50: =INDEX(_xlfn._xlws.FILTER($H$5:$H$3693,$G$5:$G$3693="Description:"),L50) -> 294.56 DOGECOIN TO US DOLLAR
F51: 1 | G51: ROBINHOOD SECURITIES LLC | L51: 45 | M51: =INDEX(_xlfn._xlws.FILTER($H$5:$H$3693,$G$5:$G$3693="Proceeds:"),L51) -> 231 | N51: =INDEX(_xlfn._xlws.FILTER($H$5:$H$3693,$G$5:$G$3693="Cost or Basis:"),L51) -> 0 | O51: =INDEX(_xlfn._xlws.FILTER($H$5:$H$3693,$G$5:$G$3693="Description:"),L51) -> 484.27 DOGECOIN TO US DOLLAR
F52: 1 | G52: 500 COLONIAL CENTER PARKWAY SUITE 100 | L52: 46 | M52: =INDEX(_xlfn._xlws.FILTER($H$5:$H$3693,$G$5:$G$3693="Proceeds:"),L52) -> 37 | N52: =INDEX(_xlfn._xlws.FILTER($H$5:$H$3693,$G$5:$G$3693="Cost or Basis:"),L52) -> 0 | O52: =INDEX(_xlfn._xlws.FILTER($H$5:$H$3693,$G$5:$G$3693="Description:"),L52) -> 115.35 DOGECOIN TO US DOLLAR
F53: 1 | G53: LAKE MARY, FL 32746-0000 | L53: 47 | M53: =INDEX(_xlfn._xlws.FILTER($H$5:$H$3693,$G$5:$G$3693="Proceeds:"),L53) -> 5 | N53: =INDEX(_xlfn._xlws.FILTER($H$5:$H$3693,$G$5:$G$3693="Cost or Basis:"),L53) -> 0 | O53: =INDEX(_xlfn._xlws.FILTER($H$5:$H$3693,$G$5:$G$3693="Description:"),L53) -> 0.098217 ETHEREUM CLASSIC TO US DOLLAR
F54: 1 | L54: 48 | M54: =INDEX(_xlfn._xlws.FILTER($H$5:$H$3693,$G$5:$G$3693="Proceeds:"),L54) -> 275 | N54: =INDEX(_xlfn._xlws.FILTER($H$5:$H$3693,$G$5:$G$3693="Cost or Basis:"),L54) -> 0 | O54: =INDEX(_xlfn._xlws.FILTER($H$5:$H$3693,$G$5:$G$3693="Description:"),L54) -> 5.150000 ETHEREUM CLASSIC TO US DOLLAR
F55: 1 | G55: Recipient: | L55: 49 | M55: =INDEX(_xlfn._xlws.FILTER($H$5:$H$3693,$G$5:$G$3693="Proceeds:"),L55) -> 86 | N55: =INDEX(_xlfn._xlws.FILTER($H$5:$H$3693,$G$5:$G$3693="Cost or Basis:"),L55) -> 0 | O55: =INDEX(_xlfn._xlws.FILTER($H$5:$H$3693,$G$5:$G$3693="Description:"),L55) -> 1.202132 ETHEREUM CLASSIC TO US DOLLAR
F56: 1 | G56: Recipient's Identification Number: 646-04-1329 | L56: 50 | M56: =INDEX(_xlfn._xlws.FILTER($H$5:$H$3693,$G$5:$G$3693="Proceeds:"),L56) -> 249 | N56: =INDEX(_xlfn._xlws.FILTER($H$5:$H$3693,$G$5:$G$3693="Cost or Basis:"),L56) -> 0 | O56: =INDEX(_xlfn._xlws.FILTER($H$5:$H$3693,$G$5:$G$3693="Description:"),L56) -> 3.998088 ETHEREUM CLASSIC TO US DOLLAR
F57: 1 | G57: NATHAN TUN | L57: 51 | M57: =INDEX(_xlfn._xlws.FILTER($H$5:$H$3693,$G$5:$G$3693="Proceeds:"),L57) -> 427 | N57: =INDEX(_xlfn._xlws.FILTER($H$5:$H$3693,$G$5:$G$3693="Cost or Basis:"),L57) -> 0 | O57: =INDEX(_xlfn._xlws.FILTER($H$5:$H$3693,$G$5:$G$3693="Description:"),L57) -> 5.000000 ETHEREUM CLASSIC TO US DOLLAR
F58: 1 | G58: 1416 MICHIGAN ST C2 | L58: 52 | M58: =INDEX(_xlfn._xlws.FILTER($H$5:$H$3693,$G$5:$G$3693="Proceeds:"),L58) -> 14 | N58: =INDEX(_xlfn._xlws.FILTER($H$5:$H$3693,$G$5:$G$3693="Cost or Basis:"),L58) -> 0 | O58: =INDEX(_xlfn._xlws.FILTER($H$5:$H$3693,$G$5:$G$3693="Description:"),L58) -> 0.180177 ETHEREUM CLASSIC TO US DOLLAR
F59: 1 | G59: STORM LAKE, IA 50588-0000 | L59: 53 | M59: =INDEX(_xlfn._xlws.FILTER($H$5:$H$3693,$G$5:$G$3693="Proceeds:"),L59) -> 62 | N59: =INDEX(_xlfn._xlws.FILTER($H$5:$H$3693,$G$5:$G$3693="Cost or Basis:"),L59) -> 0 | O59: =INDEX(_xlfn._xlws.FILTER($H$5:$H$3693,$G$5:$G$3693="Description:"),L59) -> 0.648932 ETHEREUM CLASSIC TO US DOLLAR
F60: 1 | L60: 54 | M60: =INDEX(_xlfn._xlws.FILTER($H$5:$H$3693,$G$5:$G$3693="Proceeds:"),L60) -> 387 | N60: =INDEX(_xlfn._xlws.FILTER($H$5:$H$3693,$G$5:$G$3693="Cost or Basis:"),L60) -> 0 | O60: =INDEX(_xlfn._xlws.FILTER($H$5:$H$3693,$G$5:$G$3693="Description:"),L60) -> 4.050316 ETHEREUM CLASSIC TO US DOLLAR
F61: 1 | L61: 55 | M61: =INDEX(_xlfn._xlws.FILTER($H$5:$H$3693,$G$5:$G$3693="Proceeds:"),L61) -> 399 | N61: =INDEX(_xlfn._xlws.FILTER($H$5:$H$3693,$G$5:$G$3693="Cost or Basis:"),L61) -> 0 | O61: =INDEX(_xlfn._xlws.FILTER($H$5:$H$3693,$G$5:$G$3693="Description:"),L61) -> 4.072565 ETHEREUM CLASSIC TO US DOLLAR
F62: 1 | G62: Submission Type: | H62: Original document | L62: 56 | M62: =INDEX(_xlfn._xlws.FILTER($H$5:$H$3693,$G$5:$G$3693="Proceeds:"),L62) -> 490 | N62: =INDEX(_xlfn._xlws.FILTER($H$5:$H$3693,$G$5:$G$3693="Cost or Basis:"),L62) -> 0 | O62: =INDEX(_xlfn._xlws.FILTER($H$5:$H$3693,$G$5:$G$3693="Description:"),L62) -> 3.999394 ETHEREUM CLASSIC TO US DOLLAR
F63: 1 | G63: Account Number (Optional): | H63: WSC15416452 | L63: 57 | M63: =INDEX(_xlfn._xlws.FILTER($H$5:$H$3693,$G$5:$G$3693="Proceeds:"),L63) -> 493 | N63: =INDEX(_xlfn._xlws.FILTER($H$5:$H$3693,$G$5:$G$3693="Cost or Basis:"),L63) -> 0 | O63: =INDEX(_xlfn._xlws.FILTER($H$5:$H$3693,$G$5:$G$3693="Description:"),L63) -> 2.74299 ETHEREUM CLASSIC TO US DOLLAR
F64: 1 | G64: Date Sold or Disposed: | H64: 2021-01-20 | L64: 58 | M64: =INDEX(_xlfn._xlws.FILTER($H$5:$H$3693,$G$5:$G$3693="Proceeds:"),L64) -> 267 | N64: =INDEX(_xlfn._xlws.FILTER($H$5:$H$3693,$G$5:$G$3693="Cost or Basis:"),L64) -> 0 | O64: =INDEX(_xlfn._xlws.FILTER($H$5:$H$3693,$G$5:$G$3693="Description:"),L64) -> 1.482858 ETHEREUM CLASSIC TO US DOLLAR
F65: 1 | G65: CUSIP Number: | H65: 458140100 | L65: 59 | M65: =INDEX(_xlfn._xlws.FILTER($H$5:$H$3693,$G$5:$G$3693="Proceeds:"),L65) -> 416 | N65: =INDEX(_xlfn._xlws.FILTER($H$5:$H$3693,$G$5:$G$3693="Cost or Basis:"),L65) -> 0 | O65: =INDEX(_xlfn._xlws.FILTER($H$5:$H$3693,$G$5:$G$3693="Description:"),L65) -> 2.380465 ETHEREUM CLASSIC TO US DOLLAR
F66: 1 | G66: Gross Proceeds: | H66: Nothing checked | L66: 60 | M66: =INDEX(_xlfn._xlws.FILTER($H$5:$H$3693,$G$5:$G$3693="Proceeds:"),L66) -> 332 | N66: =INDEX(_xlfn._xlws.FILTER($H$5:$H$3693,$G$5:$G$3693="Cost or Basis:"),L66) -> 0 | O66: =INDEX(_xlfn._xlws.FILTER($H$5:$H$3693,$G$5:$G$3693="Description:"),L66) -> 1.898000 ETHEREUM CLASSIC TO US DOLLAR
F67: 1 | G67: Bartering: | H67: 0 | L67: 61 | M67: =INDEX(_xlfn._xlws.FILTER($H$5:$H$3693,$G$5:$G$3693="Proceeds:"),L67) -> 428 | N67: =INDEX(_xlfn._xlws.FILTER($H$5:$H$3693,$G$5:$G$3693="Cost or Basis:"),L67) -> 0 | O67: =INDEX(_xlfn._xlws.FILTER($H$5:$H$3693,$G$5:$G$3693="Description:"),L67) -> 2.386 ETHEREUM CLASSIC TO US DOLLAR
F68: 1 | G68: Federal Income Tax Withheld: | H68: 0 | L68: 62 | M68: =INDEX(_xlfn._xlws.FILTER($H$5:$H$3693,$G$5:$G$3693="Proceeds:"),L68) -> 290 | N68: =INDEX(_xlfn._xlws.FILTER($H$5:$H$3693,$G$5:$G$3693="Cost or Basis:"),L68) -> 0 | O68: =INDEX(_xlfn._xlws.FILTER($H$5:$H$3693,$G$5:$G$3693="Description:"),L68) -> 1.614 ETHEREUM CLASSIC TO US DOLLAR
F69: 2 | G69: Proceeds: | H69: 50 | L69: 63 | M69: =INDEX(_xlfn._xlws.FILTER($H$5:$H$3693,$G$5:$G$3693="Proceeds:"),L69) -> 420 | N69: =INDEX(_xlfn._xlws.FILTER($H$5:$H$3693,$G$5:$G$3693="Cost or Basis:"),L69) -> 0 | O69: =INDEX(_xlfn._xlws.FILTER($H$5:$H$3693,$G$5:$G$3693="Description:"),L69) -> 3.072809 ETHEREUM CLASSIC TO US DOLLAR
F70: 2 | G70: Aggregate Profit or (Loss): | H70: 0 | L70: 64 | M70: =INDEX(_xlfn._xlws.FILTER($H$5:$H$3693,$G$5:$G$3693="Proceeds:"),L70) -> 259 | N70: =INDEX(_xlfn._xlws.FILTER($H$5:$H$3693,$G$5:$G$3693="Cost or Basis:"),L70) -> 0 | O70: =INDEX(_xlfn._xlws.FILTER($H$5:$H$3693,$G$5:$G$3693="Description:"),L70) -> 1.894000 ETHEREUM CLASSIC TO US DOLLAR
F71: 2 | G71: Realized Profit or (Loss): | H71: 0 | L71: 65 | M71: =INDEX(_xlfn._xlws.FILTER($H$5:$H$3693,$G$5:$G$3693="Proceeds:"),L71) -> 277 | N71: =INDEX(_xlfn._xlws.FILTER($H$5:$H$3693,$G$5:$G$3693="Cost or Basis:"),L71) -> 0 | O71: =INDEX(_xlfn._xlws.FILTER($H$5:$H$3693,$G$5:$G$3693="Description:"),L71) -> 2.1675 ETHEREUM CLASSIC TO US DOLLAR
F72: 2 | G72: Unrealized Profit or (Loss) 12/31 Prior Year: | H72: 0 | L72: 66 | M72: =INDEX(_xlfn._xlws.FILTER($H$5:$H$3693,$G$5:$G$3693="Proceeds:"),L72) -> 329 | N72: =INDEX(_xlfn._xlws.FILTER($H$5:$H$3693,$G$5:$G$3693="Cost or Basis:"),L72) -> 0 | O72: =INDEX(_xlfn._xlws.FILTER($H$5:$H$3693,$G$5:$G$3693="Description:"),L72) -> 2.567000 ETHEREUM CLASSIC TO US DOLLAR
F73: =IF(OR(G73="Proceeds:",G73="Interest:"),1+F72,F72) -> 2 | G73: Unrealized Profit or (Loss) 12/31 Current Year: | H73: 0 | L73: 67 | M73: =INDEX(_xlfn._xlws.FILTER($H$5:$H$3693,$G$5:$G$3693="Proceeds:"),L73) -> 27 | N73: =INDEX(_xlfn._xlws.FILTER($H$5:$H$3693,$G$5:$G$3693="Cost or Basis:"),L73) -> 0 | O73: =INDEX(_xlfn._xlws.FILTER($H$5:$H$3693,$G$5:$G$3693="Description:"),L73) -> 0.216975 ETHEREUM CLASSIC TO US DOLLAR
F74: 2 | G74: Cost or Basis: | H74: 49 | L74: 68 | M74: =INDEX(_xlfn._xlws.FILTER($H$5:$H$3693,$G$5:$G$3693="Proceeds:"),L74) -> 55 | N74: =INDEX(_xlfn._xlws.FILTER($H$5:$H$3693,$G$5:$G$3693="Cost or Basis:"),L74) -> 0 | O74: =INDEX(_xlfn._xlws.FILTER($H$5:$H$3693,$G$5:$G$3693="Description:"),L74) -> 0.365967 ETHEREUM CLASSIC TO US DOLLAR
F75: 2 | G75: Wash Sale Loss Disallowed: | H75: 0 | L75: 69 | M75: =INDEX(_xlfn._xlws.FILTER($H$5:$H$3693,$G$5:$G$3693="Proceeds:"),L75) -> 402 | N75: =INDEX(_xlfn._xlws.FILTER($H$5:$H$3693,$G$5:$G$3693="Cost or Basis:"),L75) -> 0 | O75: =INDEX(_xlfn._xlws.FILTER($H$5:$H$3693,$G$5:$G$3693="Description:"),L75) -> 2.669000 ETHEREUM CLASSIC TO US DOLLAR
F76: 2 | G76: Accrued Market Discount Amount: | H76: 0 | L76: 70 | M76: =INDEX(_xlfn._xlws.FILTER($H$5:$H$3693,$G$5:$G$3693="Proceeds:"),L76) -> 87 | N76: =INDEX(_xlfn._xlws.FILTER($H$5:$H$3693,$G$5:$G$3693="Cost or Basis:"),L76) -> 0 | O76: =INDEX(_xlfn._xlws.FILTER($H$5:$H$3693,$G$5:$G$3693="Description:"),L76) -> 0.577685 ETHEREUM CLASSIC TO US DOLLAR
F77: 2 | G77: Description: | H77: INTEL CORPORATION COMMON STOCK | L77: 71 | M77: =INDEX(_xlfn._xlws.FILTER($H$5:$H$3693,$G$5:$G$3693="Proceeds:"),L77) -> 116 | N77: =INDEX(_xlfn._xlws.FILTER($H$5:$H$3693,$G$5:$G$3693="Cost or Basis:"),L77) -> 0 | O77: =INDEX(_xlfn._xlws.FILTER($H$5:$H$3693,$G$5:$G$3693="Description:"),L77) -> 0.774444 ETHEREUM CLASSIC TO US DOLLAR
F78: 2 | G78: Second Notice Indicator: | H78: No Second Notice | L78: 72 | M78: =INDEX(_xlfn._xlws.FILTER($H$5:$H$3693,$G$5:$G$3693="Proceeds:"),L78) -> 178 | N78: =INDEX(_xlfn._xlws.FILTER($H$5:$H$3693,$G$5:$G$3693="Cost or Basis:"),L78) -> 0 | O78: =INDEX(_xlfn._xlws.FILTER($H$5:$H$3693,$G$5:$G$3693="Description:"),L78) -> 1.38416 ETHEREUM CLASSIC TO US DOLLAR
F79: 2 | G79: Date Acquired: | H79: 2021-01-19 | L79: 73 | M79: =INDEX(_xlfn._xlws.FILTER($H$5:$H$3693,$G$5:$G$3693="Proceeds:"),L79) -> 95 | N79: =INDEX(_xlfn._xlws.FILTER($H$5:$H$3693,$G$5:$G$3693="Cost or Basis:"),L79) -> 0 | O79: =INDEX(_xlfn._xlws.FILTER($H$5:$H$3693,$G$5:$G$3693="Description:"),L79) -> 0.645375 ETHEREUM CLASSIC TO US DOLLAR
F80: 2 | G80: Noncovered Security Indicator: | H80: Nothing checked | L80: 74 | M80: =INDEX(_xlfn._xlws.FILTER($H$5:$H$3693,$G$5:$G$3693="Proceeds:"),L80) -> 364 | N80: =INDEX(_xlfn._xlws.FILTER($H$5:$H$3693,$G$5:$G$3693="Cost or Basis:"),L80) -> 0 | O80: =INDEX(_xlfn._xlws.FILTER($H$5:$H$3693,$G$5:$G$3693="Description:"),L80) -> 2.465 ETHEREUM CLASSIC TO US DOLLAR
F81: 2 | G81: Type of Gain or Loss Code: | H81: Short-term | L81: 75 | M81: =INDEX(_xlfn._xlws.FILTER($H$5:$H$3693,$G$5:$G$3693="Proceeds:"),L81) -> 229 | N81: =INDEX(_xlfn._xlws.FILTER($H$5:$H$3693,$G$5:$G$3693="Cost or Basis:"),L81) -> 0 | O81: =INDEX(_xlfn._xlws.FILTER($H$5:$H$3693,$G$5:$G$3693="Description:"),L81) -> 1.555 ETHEREUM CLASSIC TO US DOLLAR
F82: 2 | G82: Applicable Check Box on Form 8949: | H82: Short term transaction for which the cost or other basis is being reported to the IRS | L82: 76 | M82: =INDEX(_xlfn._xlws.FILTER($H$5:$H$3693,$G$5:$G$3693="Proceeds:"),L82) -> 426 | N82: =INDEX(_xlfn._xlws.FILTER($H$5:$H$3693,$G$5:$G$3693="Cost or Basis:"),L82) -> 0 | O82: =INDEX(_xlfn._xlws.FILTER($H$5:$H$3693,$G$5:$G$3693="Description:"),L82) -> 3.333333 ETHEREUM CLASSIC TO US DOLLAR
F83: 2 | G83: Loss Not Allowed Indicator: | L83: 77 | M83: =INDEX(_xlfn._xlws.FILTER($H$5:$H$3693,$G$5:$G$3693="Proceeds:"),L83) -> 253 | N83: =INDEX(_xlfn._xlws.FILTER($H$5:$H$3693,$G$5:$G$3693="Cost or Basis:"),L83) -> 0 | O83: =INDEX(_xlfn._xlws.FILTER($H$5:$H$3693,$G$5:$G$3693="Description:"),L83) -> 2.300017 ETHEREUM CLASSIC TO US DOLLAR
F84: 2 | G84: FATCA Filing Requirement: | H84: Box not checked no Filing Requirement | L84: 78 | M84: =INDEX(_xlfn._xlws.FILTER($H$5:$H$3693,$G$5:$G$3693="Proceeds:"),L84) -> 361 | N84: =INDEX(_xlfn._xlws.FILTER($H$5:$H$3693,$G$5:$G$3693="Cost or Basis:"),L84) -> 0 | O84: =INDEX(_xlfn._xlws.FILTER($H$5:$H$3693,$G$5:$G$3693="Description:"),L84) -> 3.283645 ETHEREUM CLASSIC TO US DOLLAR
F85: 2 | G85: Proceeds from: | H85: Box not checked | L85: 79 | M85: =INDEX(_xlfn._xlws.FILTER($H$5:$H$3693,$G$5:$G$3693="Proceeds:"),L85) -> 244 | N85: =INDEX(_xlfn._xlws.FILTER($H$5:$H$3693,$G$5:$G$3693="Cost or Basis:"),L85) -> 0 | O85: =INDEX(_xlfn._xlws.FILTER($H$5:$H$3693,$G$5:$G$3693="Description:"),L85) -> 2.22 ETHEREUM CLASSIC TO US DOLLAR
F86: 2 | L86: 80 | M86: =INDEX(_xlfn._xlws.FILTER($H$5:$H$3693,$G$5:$G$3693="Proceeds:"),L86) -> 331 | N86: =INDEX(_xlfn._xlws.FILTER($H$5:$H$3693,$G$5:$G$3693="Cost or Basis:"),L86) -> 0 | O86: =INDEX(_xlfn._xlws.FILTER($H$5:$H$3693,$G$5:$G$3693="Description:"),L86) -> 3.007888 ETHEREUM CLASSIC TO US DOLLAR
F87: 2 | G87: Form 1099-B Proceeds From Broker and Barter Exchange Transactions | L87: 81 | M87: =INDEX(_xlfn._xlws.FILTER($H$5:$H$3693,$G$5:$G$3693="Proceeds:"),L87) -> 529 | N87: =INDEX(_xlfn._xlws.FILTER($H$5:$H$3693,$G$5:$G$3693="Cost or Basis:"),L87) -> 0 | O87: =INDEX(_xlfn._xlws.FILTER($H$5:$H$3693,$G$5:$G$3693="Description:"),L87) -> 7.702071 ETHEREUM CLASSIC TO US DOLLAR
F88: 2 | L88: 82 | M88: =INDEX(_xlfn._xlws.FILTER($H$5:$H$3693,$G$5:$G$3693="Proceeds:"),L88) -> 571 | N88: =INDEX(_xlfn._xlws.FILTER($H$5:$H$3693,$G$5:$G$3693="Cost or Basis:"),L88) -> 0 | O88: =INDEX(_xlfn._xlws.FILTER($H$5:$H$3693,$G$5:$G$3693="Description:"),L88) -> 9.546732 ETHEREUM CLASSIC TO US DOLLAR
F89: 2 | L89: 83 | M89: =INDEX(_xlfn._xlws.FILTER($H$5:$H$3693,$G$5:$G$3693="Proceeds:"),L89) -> 601 | N89: =INDEX(_xlfn._xlws.FILTER($H$5:$H$3693,$G$5:$G$3693="Cost or Basis:"),L89) -> 0 | O89: =INDEX(_xlfn._xlws.FILTER($H$5:$H$3693,$G$5:$G$3693="Description:"),L89) -> 10.68947 ETHEREUM CLASSIC TO US DOLLAR
F90: 2 | G90: Payer: | L90: 84 | M90: =INDEX(_xlfn._xlws.FILTER($H$5:$H$3693,$G$5:$G$3693="Proceeds:"),L90) -> 564 | N90: =INDEX(_xlfn._xlws.FILTER($H$5:$H$3693,$G$5:$G$3693="Cost or Basis:"),L90) -> 0 | O90: =INDEX(_xlfn._xlws.FILTER($H$5:$H$3693,$G$5:$G$3693="Description:"),L90) -> 10.636312 ETHEREUM CLASSIC TO US DOLLAR
F91: 2 | G91: Payer's Federal Identification Number (FIN):384019216 | L91: 85 | M91: =INDEX(_xlfn._xlws.FILTER($H$5:$H$3693,$G$5:$G$3693="Proceeds:"),L91) -> 443 | N91: =INDEX(_xlfn._xlws.FILTER($H$5:$H$3693,$G$5:$G$3693="Cost or Basis:"),L91) -> 0 | O91: =INDEX(_xlfn._xlws.FILTER($H$5:$H$3693,$G$5:$G$3693="Description:"),L91) -> 6.549127 ETHEREUM CLASSIC TO US DOLLAR
F92: 2 | G92: ROBINHOOD SECURITIES LLC | L92: 86 | M92: =INDEX(_xlfn._xlws.FILTER($H$5:$H$3693,$G$5:$G$3693="Proceeds:"),L92) -> 306 | N92: =INDEX(_xlfn._xlws.FILTER($H$5:$H$3693,$G$5:$G$3693="Cost or Basis:"),L92) -> 0 | O92: =INDEX(_xlfn._xlws.FILTER($H$5:$H$3693,$G$5:$G$3693="Description:"),L92) -> 0.97619486 LITECOIN TO US DOLLAR
F93: 2 | G93: 500 COLONIAL CENTER PARKWAY SUITE 100 | L93: 87 | M93: =INDEX(_xlfn._xlws.FILTER($H$5:$H$3693,$G$5:$G$3693="Proceeds:"),L93) -> 40 | N93: =INDEX(_xlfn._xlws.FILTER($H$5:$H$3693,$G$5:$G$3693="Cost or Basis:"),L93) -> 0 | O93: =INDEX(_xlfn._xlws.FILTER($H$5:$H$3693,$G$5:$G$3693="Description:"),L93) -> 0.14312294 LITECOIN TO US DOLLAR
F94: 2 | G94: LAKE MARY, FL 32746-0000 | L94: 88 | M94: =INDEX(_xlfn._xlws.FILTER($H$5:$H$3693,$G$5:$G$3693="Proceeds:"),L94) -> 5 | N94: =INDEX(_xlfn._xlws.FILTER($H$5:$H$3693,$G$5:$G$3693="Cost or Basis:"),L94) -> 0 | O94: =INDEX(_xlfn._xlws.FILTER($H$5:$H$3693,$G$5:$G$3693="Description:"),L94) -> 0.01530315 LITECOIN TO US DOLLAR
F95: 2 | L95: 89 | M95: =INDEX(_xlfn._xlws.FILTER($H$5:$H$3693,$G$5:$G$3693="Proceeds:"),L95) -> 394 | N95: =INDEX(_xlfn._xlws.FILTER($H$5:$H$3693,$G$5:$G$3693="Cost or Basis:"),L95) -> 0 | O95: =INDEX(_xlfn._xlws.FILTER($H$5:$H$3693,$G$5:$G$3693="Description:"),L95) -> 1.15516793 LITECOIN TO US DOLLAR
F96: 2 | G96: Recipient: | L96: 90 | M96: =INDEX(_xlfn._xlws.FILTER($H$5:$H$3693,$G$5:$G$3693="Proceeds:"),L96) -> 1811 | N96: =INDEX(_xlfn._xlws.FILTER($H$5:$H$3693,$G$5:$G$3693="Cost or Basis:"),L96) -> 1619 | O96: =INDEX(_xlfn._xlws.FILTER($H$5:$H$3693,$G$5:$G$3693="Description:"),L96) -> STOCK DISTRIBUTION / SALE
F97: 2 | G97: Recipient's Identification Number: 646-04-1329
F98: 2 | G98: NATHAN TUN | M98: =SUM(M7:M97) -> 25417 | N98: =SUM(N7:N97) -> 9005
F99: 2 | G99: 1416 MICHIGAN ST C2
F100: 2 | G100: STORM LAKE, IA 50588-0000 | M100: Net: | N100: =M98-N98 -> 16412
F101: 2 | S101: 0.22
F102: 2 | Q102: Taxable | R102: 80358 | S102: =R102*S101 -> 17678.76
F103: 2 | G103: Submission Type: | H103: Original document | Q103: Add'l | R103: 16412 | S103: =R103*0.23 -> 3774.76
F104: 2 | G104: Account Number (Optional): | H104: WSC15416453 | Q104: Tax Report | R104: 13431
F105: 2 | G105: Date Sold or Disposed: | H105: 2021-07-02
F106: 2 | G106: CUSIP Number: | H106: 00165C104
F107: 2 | G107: Gross Proceeds: | H107: Nothing checked
F108: 2 | G108: Bartering: | H108: 0
F109: 2 | G109: Federal Income Tax Withheld: | H109: 0 | O109: =3816/16412 -> 0.2325127955
F110: 3 | G110: Proceeds: | H110: 573
F111: 3 | G111: Aggregate Profit or (Loss): | H111: 0
F112: 3 | G112: Realized Profit or (Loss): | H112: 0
F113: 3 | G113: Unrealized Profit or (Loss) 12/31 Prior Year: | H113: 0
F114: 3 | G114: Unrealized Profit or (Loss) 12/31 Current Year: | H114: 0
F115: 3 | G115: Cost or Basis: | H115: 609
F116: 3 | G116: Wash Sale Loss Disallowed: | H116: 0
F117: 3 | G117: Accrued Market Discount Amount: | H117: 0
F118: 3 | G118: Description: | H118: AMC ENTERTAINMENT HOLDINGS IN C
F119: 3 | G119: Second Notice Indicator: | H119: No Second Notice
F120: 3 | G120: Date Acquired: | H120: 00-00-0000
F121: 3 | G121: Noncovered Security Indicator: | H121: Nothing checked
F122: 3 | G122: Type of Gain or Loss Code: | H122: Short-term
F123: 3 | G123: Applicable Check Box on Form 8949: | H123: Short term transaction for which the cost or other basis is being reported to the IRS
F124: 3 | G124: Loss Not Allowed Indicator:
F125: 3 | G125: FATCA Filing Requirement: | H125: Box not checked no Filing Requirement
F126: 3 | G126: Proceeds from: | H126: Box not checked
F127: 3
F128: 3 | G128: Form 1099-B Proceeds From Broker and Barter Exchange Transactions
F129: 3
F130: 3
F131: 3 | G131: Payer:
F132: 3 | G132: Payer's Federal Identification Number (FIN):384019216
F133: 3 | G133: ROBINHOOD SECURITIES LLC
F134: 3 | G134: 500 COLONIAL CENTER PARKWAY SUITE 100
F135: 3 | G135: LAKE MARY, FL 32746-0000
F136: 3
F137: =IF(OR(G137="Proceeds:",G137="Interest:"),1+F136,F136) -> 3 | G137: Recipient:
F138: 3 | G138: Recipient's Identification Number: 646-04-1329
F139: 3 | G139: NATHAN TUN
F140: 3 | G140: 1416 MICHIGAN ST C2
F141: 3 | G141: STORM LAKE, IA 50588-0000
F142: 3
F143: 3
F144: 3 | G144: Submission Type: | H144: Original document
F145: 3 | G145: Account Number (Optional): | H145: WSC15416454
F146: 3 | G146: Date Sold or Disposed: | H146: 2021-02-11
F147: 3 | G147: CUSIP Number:
F148: 3 | G148: Gross Proceeds: | H148: Nothing checked
F149: 3 | G149: Bartering: | H149: 0
F150: 3 | G150: Federal Income Tax Withheld: | H150: 0
F151: 4 | G151: Proceeds: | H151: 81
F152: 4 | G152: Aggregate Profit or (Loss): | H152: 0
F153: 4 | G153: Realized Profit or (Loss): | H153: 0
F154: 4 | G154: Unrealized Profit or (Loss) 12/31 Prior Year: | H154: 0
F155: 4 | G155: Unrealized Profit or (Loss) 12/31 Current Year: | H155: 0
F156: 4 | G156: Cost or Basis: | H156: 110
F157: 4 | G157: Wash Sale Loss Disallowed: | H157: 0
F158: 4 | G158: Accrued Market Discount Amount: | H158: 0
F159: 4 | G159: Description: | H159: SENS 02 19 2021 CALL 4 00
F160: 4 | G160: Second Notice Indicator: | H160: No Second Notice
F161: 4 | G161: Date Acquired: | H161: 2021-02-09
F162: 4 | G162: Noncovered Security Indicator: | H162: Nothing checked
F163: 4 | G163: Type of Gain or Loss Code: | H163: Short-term
F164: 4 | G164: Applicable Check Box on Form 8949: | H164: Short term transaction for which the cost or other basis is being reported to the IRS
F165: 4 | G165: Loss Not Allowed Indicator:
F166: 4 | G166: FATCA Filing Requirement: | H166: Box not checked no Filing Requirement
F167: 4 | G167: Proceeds from: | H167: Box not checked
F168: 4
F169: 4 | G169: Form 1099-B Proceeds From Broker and Barter Exchange Transactions
F170: 4
F171: 4
F172: 4 | G172: Payer:
F173: 4 | G173: Payer's Federal Identification Number (FIN):384019216
F174: 4 | G174: ROBINHOOD SECURITIES LLC
F175: 4 | G175: 500 COLONIAL CENTER PARKWAY SUITE 100
F176: 4 | G176: LAKE MARY, FL 32746-0000
F177: 4
F178: 4 | G178: Recipient:
F179: 4 | G179: Recipient's Identification Number: 646-04-1329
F180: 4 | G180: NATHAN TUN
F181: 4 | G181: 1416 MICHIGAN ST C2
F182: 4 | G182: STORM LAKE, IA 50588-0000
F183: 4
F184: 4
F185: 4 | G185: Submission Type: | H185: Original document
F186: 4 | G186: Account Number (Optional): | H186: WSC15416455
F187: 4 | G187: Date Sold or Disposed: | H187: 2021-10-25
F188: 4 | G188: CUSIP Number: | H188: 88160R101
F189: 4 | G189: Gross Proceeds: | H189: Nothing checked
F190: 4 | G190: Bartering: | H190: 0
F191: 4 | G191: Federal Income Tax Withheld: | H191: 0
F192: 5 | G192: Proceeds: | H192: 616
F193: 5 | G193: Aggregate Profit or (Loss): | H193: 0
F194: 5 | G194: Realized Profit or (Loss): | H194: 0
F195: 5 | G195: Unrealized Profit or (Loss) 12/31 Prior Year: | H195: 0
F196: 5 | G196: Unrealized Profit or (Loss) 12/31 Current Year: | H196: 0
F197: 5 | G197: Cost or Basis: | H197: 443
F198: 5 | G198: Wash Sale Loss Disallowed: | H198: 0
F199: 5 | G199: Accrued Market Discount Amount: | H199: 0
F200: 5 | G200: Description: | H200: TESLA INC COMMON STOCK
F201: =IF(OR(G201="Proceeds:",G201="Interest:"),1+F200,F200) -> 5 | G201: Second Notice Indicator: | H201: No Second Notice
F202: 5 | G202: Date Acquired: | H202: 00-00-0000
F203: 5 | G203: Noncovered Security Indicator: | H203: Nothing checked
F204: 5 | G204: Type of Gain or Loss Code: | H204: Short-term
... 3489 more rows
